Cogmind - Beta 15 @@@ ROGUE MODE // 2025.05.24 @ 18:44:39 Player: Elias Result: Destroyed by G-47 Trooper with Particle Gun Performance ------------- Evolutions (0) 0 Regions Visited (2) 400 Robots Destroyed (13) 65 Value Destroyed (135) 135 Prototype IDs (0) 0 Alien Tech Used (0) 0 Bonus (0) 0 TOTAL SCORE: 600 Bonus ------- None Cogmind --------- Core Integrity 0/250 Matter 239/300 Energy 199/250 System Corruption 1% Temperature Cool (9) Movement Walking (190) Ox1 Location -10/Mines Parts ------- > --- POWER (1) -------- Ion Engine > --- PROPULSION (2) --- Aluminum Leg > --- UTILITY (2) ------ Small Storage Unit ECM Suite > --- WEAPON (2) ------- Assault Rifle > --- INVENTORY (8) ---- Aluminum Leg ECM Suite ECM Suite ECM Suite ECM Suite Peak State ------------ > --- POWER ------------ Ion Engine > --- PROPULSION ------- Light Treads Light Treads > --- UTILITY ---------- Small Storage Unit Improved Terrain Scanner > --- WEAPON ----------- Light Assault Rifle Light Assault Rifle > --- INVENTORY -------- Ion Engine Aluminum Leg Aluminum Leg Assault Rifle [Rating: 9] Favorites ----------- Power Ion Engine Engine Ion Engine Propulsion Light Treads Treads Light Treads Leg Aluminum Leg Utility Small Storage Unit Device ECM Suite Storage Small Storage Unit Weapon Light Assault Rifle Ballistic Gun Light Assault Rifle Build | -11 -10 -10 ------- Run | Yrd Mat Min Slots Evolved . | . . . Power . | . . . Propulsion . | . . . Utility . | . . . Weapon . | . . . Parts Attached 11 | 7 1 3 Power 2 | 1 . 1 Engine 2 | 1 . 1 Core . | . . . Reactor . | . . . Propulsion 3 | 2 . 1 Treads 2 | 2 . . Leg 1 | . . 1 Wheel . | . . . Hover . | . . . Flight . | . . . Utility 3 | 2 1 . Device 2 | 1 1 . Storage 1 | 1 . . Processor . | . . . Hackware . | . . . Protection . | . . . Artifact . | . . . Weapon 3 | 2 . 1 Energy Gun . | . . . Energy Cannon . | . . . Ballistic Gun 3 | 2 . 1 Ballistic Cannon . | . . . Launcher . | . . . Special Weapon . | . . . Impact Weapon . | . . . Slashing Weapon . | . . . Piercing Weapon . | . . . Special Melee Weapon . | . . . Unidentified Prototypes . | . . . Parts Lost 4 | . 2 2 Power 1 | . 1 . Propulsion 1 | . 1 . Utility . | . . . Weapon 2 | . . 2 Highest Loss Streak 4 | . 2 4 To Critical Strikes 1 | . 1 . Average Backups 6 | 5 7 5 Power 1 | 1 1 . Propulsion 1 | 1 2 1 Utility 2 | . 3 4 Weapon 1 | 1 1 . Tool/Special . | . . . Unused Backups 7 | . 2 5 Power 1 | . 1 . Propulsion 1 | . . 1 Utility 5 | . 1 4 Weapon . | . . . Tool/Special . | . . . Average Slot Usage (%) 97 | . 99 76 Engine 13 | . 13 14 Treads 25 | . 27 2 Leg 1 | . . 11 Device 14 | . 14 14 Storage 14 | . 14 14 Ballistic Gun 27 | . 28 19 Peak Build Rating 9 | 9 9 6 Average Rating 6 | 6 7 5 On Entrance 4 | . 9 5 Naked Turns . | . . . Heaviest Build 14 | 13 14 . Greatest Support 40 | 40 40 . Greatest Overweight (x) . | . . . Average Overweight (x) . | . . . Largest Inventory Capacity 8 | 8 8 8 Average Capacity 7 | 7 8 8 Most Carried 8 | 7 8 8 Average Carried 6 | 5 7 5 Final Capacity 8 | 8 8 8 Final Carried 8 | 5 8 5 Class Distribution -------------------- 100% | Mutant Dominant Class ---------------- Mutant | -10/Materials Mutant | -10/Mines Resources | -11 -10 -10 ----------- Run | Yrd Mat Min Matter Collected 338 | 283 55 . Remotely . | . . . Salvage Created 272 | 145 93 34 Parts 24 | 14 8 2 Haulers Intercepted . | . . . Recyclers Shooed . | . . . Parts Field Recycled . | . . . Retrieved Matter . | . . . Parts Self-Destructed . | . . . Prevented . | . . . Kills | -11 -10 -10 ------- Run | Yrd Mat Min Combat Hostiles Destroyed 6 | . 5 1 Guns 6 | . 5 1 Classes Destroyed 6 | 3 2 1 Worker 1 | 1 . . Tunneler 4 | 4 . . Recycler 1 | 1 . . Watcher 1 | . 1 . Swarmer 5 | . 5 . Grunt 1 | . . 1 Best Kill Streak 3 | 1 3 1 Combat Bots Only 3 | . 3 1 Max Kills in Single Turn 1 | 1 1 1 Gunslinging . | . . . Exploded . | . . . Melee . | . . . Uniques/NPCs Destroyed . | . . . Combat | -11 -10 -10 -------- Run | Yrd Mat Min Hostile Shots Fired 126 | . 99 27 Missed 34 | . 27 7 Hits 92 | . 72 20 Projectile 92 | . 72 20 Critical Strikes 1 | . 1 . Damage Taken 892 | . 602 290 Core 250 | . 146 104 Absorbed by Shields . | . . . Core Remaining (%) 100 | 100 . . Volleys Fired 60 | 19 24 17 Largest 2 | 2 2 2 Hottest 40 | 40 40 40 Shots Fired 107 | 38 48 21 Gun 107 | 38 48 21 Cannon . | . . . Launcher . | . . . Special . | . . . Kinetic 107 | 38 48 21 Thermal . | . . . Explosive . | . . . Electromagnetic . | . . . Robot Hit Streak 6 | 6 4 5 Robot Miss Streak 3 | 2 3 2 Penetration Max . | . . . Secondary Targets . | . . . Shots Hit Robots 53 | 20 18 15 Core Hits 24 | 12 8 4 Critical Kills . | . . . Critical Parts Destroyed . | . . . Critical Strikes . | . . . Melee Attacks . | . . . Impact . | . . . Slashing . | . . . Piercing . | . . . Sneak Attacks . | . . . Combat Hostiles . | . . . Follow-up Attacks . | . . . Damage Inflicted 515 | 178 165 172 Guns 486 | 149 165 172 Cannons . | . . . Explosions . | . . . Melee . | . . . Ramming 29 | 29 . . Kinetic 486 | 149 165 172 Thermal . | . . . Explosive . | . . . Electromagnetic . | . . . Impact . | . . . Slashing . | . . . Piercing . | . . . Highest Corruption 1 | . 1 1 Average Corruption 1 | . 1 1 Corruption Purged . | . . . Corruption Blocked . | . . . Effects 1 | . 1 . Data Loss (major) 1 | . 1 . Overload Shots . | . . . Overflow Damage . | . . . Projectiles . | . . . Explosions . | . . . Melee . | . . . Knockbacks . | . . . Impact . | . . . Kinetic . | . . . Secondary . | . . . Self-Inflicted Damage . | . . . Shots . | . . . Rammed 7 | 7 . . Targets Rammed 9 | 9 . . Kicked . | . . . Crushed 2 | 2 . . Highest Temperature 25 | . . 25 Average Temperature 12 | . . 12 Received Heat Transfer 165 | . . 165 Siege Activations . | . . . Martial Activations . | . . . Shielding Activations . | . . . Robots Disrupted . | . . . Combat Hostiles . | . . . Robots Corrupted . | . . . Combat Hostiles . | . . . Parts Fried . | . . . Impact Corruptions . | . . . Robots Melted . | . . . Combat Hostiles . | . . . Parts Melted . | . . . Heat Transferred . | . . . Parts Sabotaged . | . . . Parts Stolen . | . . . Parts Stripped . | . . . Power Chain Reactions . | . . . Alert | -11 -10 -10 ------- Run | Yrd Mat Min Maximum Alert Level . | . . . Low Security (%) 100 | 100 100 100 Level 1 . | . . . Level 2 . | . . . Level 3 . | . . . Level 4 . | . . . Level 5 . | . . . High Security . | . . . Max Security . | . . . Peak Influence 60 | 5 60 20 Initial . | . . . Average 12 | . 23 2 Influence Increases 198 | 30 148 20 Destroy 0b10 Robot/C 120 | . 100 20 Destroy 0b10 Robot/NC 35 | 30 5 . Destroy Leader 12 | . 12 . Successful Hack 31 | . 31 . Influence Decreases 198 | 30 148 20 Time Decay 176 | 30 136 10 Lost Part 22 | . 12 10 Squads Dispatched . | . . . Investigation . | . . . Extermination . | . . . Reinforcement . | . . . Assault . | . . . Garrison . | . . . Intercept . | . . . Searches Triggered . | . . . Construction Impeded . | . . . Haulers Reinforced . | . . . Active Scanning Responses . | . . . Cargo Convoy Interrupts . | . . . Stealth | -11 -10 -10 --------- Run | Yrd Mat Min Distress Signals 1 | . 1 . Communications Jammed . | . . . Distress Signals . | . . . Times Spotted 14 | . 12 2 Peak Tracking Total 4 | . 4 2 Tactical Retreats 2 | . 2 . Traps | -11 -10 -10 ------- Run | Yrd Mat Min Traps Triggered 1 | . 1 . Indirectly . | . . . Trap Hack Attempts . | . . . Triggered . | . . . Disarmed . | . . . Reprogrammed . | . . . Reused . | . . . Traps Extracted . | . . . Installed . | . . . Triggered . | . . . Machines | -11 -10 -10 ---------- Run | Yrd Mat Min Machines Disabled . | . . . Max in Single Turn . | . . . Machines Repaired . | . . . Machines Dismantled . | . . . Machines Sabotaged . | . . . Overloaded Fab Kills . | . . . Hacking | -11 -10 -10 --------- Run | Yrd Mat Min Machines Accessed 4 | . 4 . Terminals 4 | . 4 . Fabricators . | . . . Repair Stations . | . . . Recycling Units . | . . . Scanalyzers . | . . . Garrison Access . | . . . Total Hacks 12 | . 12 . Successful 6 | . 6 . Failed 6 | . 6 . Catastrophic . | . . . Database Lockouts . | . . . Manual . | . . . Terminals 12 | . 12 . Fabricators . | . . . Repair Stations . | . . . Recycling Units . | . . . Scanalyzers . | . . . Garrison Access . | . . . Terminal Hacks 6 | . 6 . Record 4 | . 4 . Hauler Manifests 1 | . 1 . Registered Components 1 | . 1 . Fabricator Hacks . | . . . Repair Station Hacks . | . . . Recycling Unit Hacks . | . . . Scanalyzer . | . . . Garrison Access Hacks . | . . . Unauthorized Hacks . | . . . Terminals . | . . . Fabricators . | . . . Repair Stations . | . . . Recycling Units . | . . . Scanalyzers . | . . . Garrison Access . | . . . Data Cores Recovered . | . . . Used . | . . . Hacking Detections 3 | . 3 . Full Trace Events . | . . . Feedback Events . | . . . Feedback Blocked . | . . . Robot Schematics Acquired . | . . . Robots Built . | . . . Authchips . | . . . Time . | . . . Total Robot Build Rating . | . . . Part Schematics Acquired . | . . . Parts Built . | . . . Authchips . | . . . Time . | . . . Total Part Build Rating . | . . . Parts Repaired . | . . . Time . | . . . Parts Recycled . | . . . Recycled Matter . | . . . Retrieved Matter . | . . . Retrieved Components . | . . . Parts Scanalyzed . | . . . Part Schematics Acquired . | . . . Parts Damaged . | . . . Bothacking | -11 -10 -10 ------------ Run | Yrd Mat Min Used RIF Installer . | . . . Robots Hacked . | . . . Non-combat . | . . . Combat . | . . . Robot Hacks Applied . | . . . Relay Couplers Released . | . . . Fabnet Peak Effective % . | . . . Robots Rewired . | . . . Allies Hacked . | . . . Hacks Repelled . | . . . Allies | -11 -10 -10 -------- Run | Yrd Mat Min Total Allies . | . . . Largest Group . | . . . Highest-Rated Group . | . . . Highest-Rated Ally . | . . . Total Orders . | . . . Ally Attacks . | . . . Total Damage . | . . . Kills . | . . . Allies Corrupted . | . . . Allies Melted . | . . . Intel | -11 -10 -10 ------- Run | Yrd Mat Min Active Infowar (turns) 684 | 201 445 38 Terrain 257 | 201 56 . ECM 427 | . 389 38 Robot Analysis Total . | . . . Derelict Logs Recovered . | . . . Drone Launches . | . . . Drone Recoveries . | . . . Exploration | -11 -10 -10 ------------- Run | Yrd Mat Min Turns Passed 891 | 408 445 38 Spaces Moved 448 | 214 234 . Core 15 | 15 . . Treads 433 | 199 234 . Legs . | . . . Wheels . | . . . Hover . | . . . Flight . | . . . Fastest Speed 50 | 50 160 . Average Speed 156 | 152 160 . Slowest Speed 160 | 160 160 . Overloaded Moves . | . . . Propulsion Burnouts . | . . . Robots Hopped . | . . . Potential Cave-ins . | . . . Cave-ins Triggered . | . . . Exploration Rate (%) 18 | 13 38 3 Regions Visited 2 Branch Regions 1 Pre-discovered Areas . | . . . Known Exits Taken . | . . . Unknown Exits Taken 2 | 1 1 . Scrap Searched . | . . . Spaces Dug . | . . . Terrain Destroyed . | . . . Melee . | . . . Projectile . | . . . AOE . | . . . Terrain Rammed . | . . . Walls Destroyed . | . . . Machines Disabled . | . . . Actions | -11 -10 -10 --------- Run | Yrd Mat Min Total 549 | 260 267 22 Wait . | . . . Move 446 | 213 233 . Hop . | . . . Pick Up 18 | 12 6 . Fast Attach . | . . . Attach 10 | 7 . 3 Detach 1 | . . 1 Swap 1 | . 1 . Drop 4 | . 3 1 Fire 60 | 19 24 17 Melee . | . . . Ram . | . . . Kick . | . . . Crush 9 | 9 . . Escape Stasis . | . . . Rewire . | . . . Trap . | . . . Miscellaneous . | . . . Route ------- -11/Scrapyard -10/Materials -10/Mines History --------- Turn | Location | Event 12 | -11/Scrapyard | Discovered new exit (range 15) 409 | -11/Scrapyard | Entered Materials 410 | -10/Materials | Build established: Mutant 783 | -10/Materials | Discovered new exit (range 15) 851 | -10/Materials | Core integrity fell below 50% 854 | -10/Materials | Entered Mines 881 | -10/Mines | Core integrity fell below 20% 892 | -10/Mines | Destroyed by G-47 Trooper with Particle Gun Last Messages --------------- 00744_ K-01 Serf cleans the Terminal. 00747_ R-06 Scavenger collects Lgt. Ion Engine. 00750_ K-01 Serf cleans the Terminal. 00756_ Triggered EMP Trap. 00756_ A bubble of electromagnetic force engulfs the area. 00762_ K-01 Serf cleans the Fusion Modulator. 00783_ EXIT=FOUND 00792_ Connecting with Terminal... 00809_ K-01 Serf cleans the Integration Channel. 00818_ K-01 Serf collects debris. 00831_ System corrupted: Substantial component data lost. 00843_ Ion Engine destroyed. 00845_ Critical hit (Destroy). 00845_ Lgt. Treads destroyed. LOCATION=UNKNOWN GOAL=ESCAPE 00857_ Dropped Lgt. Treads. 00868_ Lgt. Assault Rifle destroyed. 00868_ G-34 Mercenary destroyed. 00874_ Lgt. Assault Rifle destroyed. Map ----- +----------------------------------------------------+ | ?????????????????????????????????????????????? | | ?????????????????????????????????????????????? | | ?????????????????????????????????????????????? | | ?????????????????????????????????????????????? | | ?????????????????????????????????????????????? | | ?????????????????????????????????????????????? | | ?????????????????????????????????????????????? | | ?????????????????????????????????????????????? | | ?????????????????????????????????????????????? | | ?????????????????????????????????????????????? | | ?????????????????????????????????????????????? | | ?????????????????????????????????????????????? | | ?????????????????????????????????????????????? | | ?????????????????????????????????????????????? | | ?????????????????????????????????????????????? | | ?????????????????????????????????????????????? | | ?????????????????????????????????????????????? | | ?????????????????????????????????????????????? | | ?????????????????????????????????????????????? | | ??????????????????????###???#????????????????? | | ????????????????????## ###$?????????????????? | | ???????????????????##g * ??????????????????? | | ??????????????????## % #???????????????????? | | ?????????????????## = #???????????????????? | | ????????????????## #????????????????????? | | ????????????????# @ #????????????????????? | | ????????????????# #????????????????? | | ????????????????## #####????????????????? | | ?????????????????## ##????????????????????? | | ??????????????????## ##?????????????????????? | | ???????????????????###???????????????????????? | | ?????????????????????????????????????????????? | | ?????????????????????????????????????????????? | | ?????????????????????????????????????????????? | | | | | | | | | | | | | | | | | | | | | | | | | | | | | | | | | +----------------------------------------------------+ Best States ------------- Heat Dissipation 25 Energy Generation 10 Energy Capacity 250 Matter Stores 300 Matter Capacity 300 Sight Range 16 Terrain Scan Range 16 Terrain Scan Density 10 ECM Strength 1 Evasion (%) 50 Recoil Reduction 2 Item Schematics ----------------- None Robot Schematics ------------------ None Fabricated ------------ Nothing Repaired ---------- Nothing Alien Tech Used ----------------- None Achievements -------------- None Challenges ------------ None Game ------ Seed MetaForceTube Manual? 0 Play Time 00:09:45 Cumulative 3.4 hours Start 2025.05.24 @ 18:34:17 End 2025.05.24 @ 18:44:39 Sessions 1 Manual Loads 0 Difficulty Rogue Special Mode None Game No. 5 Rogue 5 Adventurer 0 Explorer 0 Win Type - Total 0 Types 0/0/0/0/0/0/0/0/0/0 Lore% 1 Gallery% 6 Achievement% 10 Wizard Run 0 Options --------- Layout 0 ASCII 0 Keyboard 0 Movement Arrows Keybinds 0 Fullscreen 1 Font 18/SmallcapsGlow Map View 76x50 Zoom Use 0% Tactical HUD 1 Map Filters NONE Filters NONE Steam 1 RUN: 684f1402-2ffa-4ccf-90e8-87ba157d73e4